bitfinex-derivatives/quotes_ETHF0:USTF0_20241027
["timestamp","ask_amount","ask_price","bid_price","bid_amount"]
[1730064902825,0.4694,2506.9,2506.8,0.39936]
[1730064904221,0.86875,2506.9,2506.8,0.39936]
[1730064912633,0.39935,2506.9,2506.8,0.39936]
[1730064915731,0.9733,2507.0,2506.7,3.6771]
[1730064915928,0.39937,2506.8,2506.7,0.86868]
[1730064916829,0.39937,2506.8,2506.7,4.07648]
[1730064917225,0.39937,2506.9,2506.8,0.39937]
[1730064918631,0.39937,2506.8,2506.7,4.07648]
[1730064919034,0.9733,2507.0,2506.7,3.6771]
[1730064919234,0.9733,2507.0,2506.8,0.39937]
[1730064919235,0.39936,2506.9,2506.8,0.39937]
[1730064920329,1.37265,2507.0,2506.9,0.39935]
[1730064920624,0.39936,2506.9,2506.8,0.39937]
[1730064925241,2.12450539,2507.0,2506.7,3.6771]
[1730064925442,2.52385539,2507.0,2506.8,0.39937]
[1730064928642,0.39935,2506.9,2506.8,0.39937]
[1730064932543,2.52384539,2507.0,2506.9,0.39935]
[1730064934738,1.55054539,2507.0,2506.9,0.39935]
[1730064934946,0.39934,2507.0,2506.9,0.39935]
[1730064936446,1.15120539,2507.1,2506.8,0.4517]
[1730064936643,0.39935,2507.0,2506.9,0.39935]
[1730064936945,0.39935,2506.9,2506.8,0.85106]
[1730064937539,0.39935,2507.0,2506.9,0.39935]
[1730064940848,1.55055539,2507.0,2506.9,0.39935]
[1730064946356,0.39935,2507.0,2506.9,0.39935]
[1730064950755,0.39935,2506.9,2506.8,0.85106]
[1730064951357,0.39935,2506.9,2506.8,4.05886]
[1730064951849,0.39935,2506.9,2506.8,0.85106]
[1730064952049,0.39935,2506.9,2506.8,4.05886]
[1730064952248,3.57918539,2507.2,2506.8,3.6595]
[1730064952653,0.39935,2507.0,2506.9,0.39935]
[1730064955058,0.39935,2506.9,2506.8,4.05886]
[1730064955956,0.39935,2506.9,2506.8,0.85106]
[1730064956456,0.39935,2506.9,2506.8,4.05886]
[1730064956657,0.39935,2506.9,2506.8,3.60716]
[1730064957253,0.39935,2507.0,2506.8,3.60716]
[1730064957554,3.57918539,2507.2,2506.8,3.60716]
[1730064957754,0.39935,2506.9,2506.8,3.60716]
[1730064958055,0.39935,2506.9,2506.8,0.39936]
[1730064958661,0.39935,2506.9,2506.8,3.60716]
[1730064959368,0.39935,2507.0,2506.8,3.60716]
[1730064959556,0.39935,2506.9,2506.8,0.39936]
[1730064959761,0.39935,2506.9,2506.7,1.62050539]
[1730064960062,0.39935,2506.9,2506.8,0.39937]
[1730064960261,0.39935,2506.9,2506.7,1.62050539]
[1730064960262,3.57918539,2507.2,2506.7,1.62050539]
[1730064960563,0.39934,2507.0,2506.7,2.01988539]
[1730064960759,1.32526,2506.9,2506.8,0.39937]
[1730064961065,1.75986,2506.9,2506.8,0.39937]
[1730064962749,1.75986,2506.9,2506.7,4.82830539]
[1730064963359,1.75986,2506.9,2506.7,1.62050539]
[1730064963559,1.75986,2506.9,2506.7,4.82830539]
[1730064964060,1.75986,2506.9,2506.8,0.39937]
[1730064965257,1.75985,2506.9,2506.8,0.39937]
[1730064968356,1.3605,2506.9,2506.8,0.39937]
[1730064968756,1.75986,2506.9,2506.7,5.11458654]
[1730064968956,1.75986,2506.9,2506.8,0.39937]
[1730064970165,1.3605,2506.9,2506.8,0.39937]
[1730064970365,0.4629,2506.9,2506.8,1.55057539]
[1730064972661,0.4629,2506.9,2506.8,0.39937]
[1730064979472,0.86225,2506.9,2506.8,0.39937]
[1730064979680,0.4629,2506.9,2506.8,0.39937]
[1730064980175,0.86225,2506.9,2506.8,0.39937]
[1730064980368,0.4629,2506.9,2506.8,0.39937]
[1730064981568,0.39935,2507.0,2506.8,0.39937]
[1730064981770,0.39935,2507.0,2506.8,0.83267]
[1730064981972,0.39935,2507.0,2506.9,0.4497]
[1730064983373,0.88335,2507.1,2506.8,0.4333]
[1730064983679,0.39937,2506.8,2506.7,0.4497]
[1730064984076,0.99833,2507.0,2506.7,0.84908]
[1730064984373,0.59893,2507.0,2506.7,0.4497]
[1730064984672,0.39937,2506.8,2506.7,0.84908]
[1730064985267,0.83337,2506.8,2506.7,0.4497]
[1730064985464,5.57480539,2506.8,2506.4,1.03781016]
[1730064985669,0.39946,2506.2,2506.1,1.48941016]
[1730064985876,1.55066539,2506.2,2506.1,0.4516]
[1730064986077,1.45012539,2506.2,2506.1,0.4516]
[1730064986877,0.39946,2506.2,2506.1,1.60280539]
[1730064987381,0.39946,2506.2,2506.1,2.00228539]
[1730064987680,0.39946,2506.2,2506.1,1.60280539]
[1730064989282,0.39946,2506.2,2506.1,2.00228539]
[1730064990782,0.39946,2506.2,2506.1,1.60280539]
[1730064991077,0.39946,2506.2,2506.1,2.00228539]
[1730064991881,0.39946,2506.2,2506.1,1.60280539]
[1730064992783,0.39946,2506.2,2506.1,0.4516]
[1730064994083,1.55066539,2506.2,2506.1,0.4516]
[1730064994278,0.39948,2506.1,2506.0,1.15120539]
[1730064994489,0.3995,2506.0,2505.9,1.15120539]
[1730064994674,0.8532,2506.0,2505.9,1.55071539]
[1730064994879,0.7934,2506.0,2505.9,1.15120539]
[1730064995276,0.3939,2506.0,2505.9,1.15120539]
[1730064995579,0.2934,2506.0,2505.9,1.15120539]
[1730064995778,1.05070539,2506.1,2505.8,1.98212539]
[1730064995974,0.4524,2505.9,2505.8,1.98212539]
[1730064996177,1.60360539,2505.9,2505.7,3.2078]
[1730064996375,6.48212539,2505.8,2505.3,0.3996]
[1730064996580,1.55079539,2505.5,2505.3,0.3996]
[1730064996779,0.85199,2505.4,2505.3,0.39961]
[1730064996976,0.4524,2505.4,2505.3,0.39961]
[1730064997179,2.00319539,2505.4,2505.2,0.39962]
[1730064997379,1.15120539,2505.3,2505.0,3.2078]
[1730064997686,0.39963,2505.2,2505.0,4.75864539]
[1730064997989,0.39963,2505.2,2505.1,0.4348]
[1730064998692,1.15120539,2505.3,2505.0,4.35900539]
[1730064998884,0.39964,2505.1,2505.0,3.2078]
[1730065000082,1.15120539,2505.2,2505.0,3.2078]
[1730065000391,0.39964,2505.1,2505.0,3.2078]
[1730065001291,0.39963,2505.2,2505.0,4.75865539]
[1730065001486,0.39962,2505.2,2505.0,4.35900539]
[1730065001681,0.39962,2505.2,2505.0,4.75865539]
[1730065001884,1.55082539,2505.2,2505.0,4.75865539]
[1730065002087,1.55084539,2505.1,2505.0,3.2078]
[1730065002286,1.15120539,2505.1,2505.0,3.60746]
[1730065002483,1.14240539,2505.1,2505.0,3.2078]
[1730065002683,1.54204539,2505.1,2505.0,3.2078]
[1730065002883,1.14240539,2505.1,2505.0,3.2078]
[1730065003079,1.54204539,2505.1,2505.0,3.2078]
[1730065003483,5.13440539,2505.1,2505.0,3.2078]
[1730065003684,1.14240539,2505.1,2505.0,3.2078]
[1730065003889,1.54204539,2505.1,2505.0,3.2078]
[1730065004090,5.53404539,2505.1,2505.0,3.2078]
[1730065006391,1.54204539,2505.1,2505.0,3.2078]
[1730065006994,1.54205539,2505.1,2504.8,2.00888539]
[1730065007188,1.54205539,2505.1,2504.9,3.60747]
[1730065007488,1.54205539,2505.1,2504.9,0.39967]
[1730065007698,0.39966,2505.0,2504.9,3.2078]
[1730065007995,1.54205539,2505.1,2504.9,3.60747]
[1730065008295,1.14240539,2505.1,2504.9,3.2078]
[1730065008593,0.39966,2505.0,2504.9,3.60747]
[1730065008794,0.39966,2505.0,2504.9,3.2078]
[1730065008997,1.14240539,2505.1,2504.9,3.2078]
[1730065009191,1.54205539,2505.1,2504.9,3.60746]
[1730065009997,1.54205539,2505.1,2504.9,3.2078]
[1730065010295,1.54205539,2505.1,2505.0,0.84716]
[1730065010496,1.14240539,2505.1,2505.0,0.84716]
[1730065010697,1.54204539,2505.1,2505.0,0.84716]
[1730065010998,1.54204539,2505.1,2505.0,0.4475]
[1730065011892,1.14240539,2505.1,2504.9,3.2078]
[1730065012199,1.55086539,2505.0,2504.9,3.2078]
[1730065013289,1.55086539,2505.0,2504.9,3.60747]
[1730065013498,1.55086539,2505.0,2504.9,3.2078]
[1730065013696,1.55086539,2505.0,2504.9,3.60747]
[1730065013890,1.55086539,2505.0,2504.9,3.2078]
[1730065014505,1.55086539,2505.0,2504.9,3.60747]
[1730065015591,1.15120539,2505.0,2504.9,3.60747]
[1730065015797,1.55086539,2505.0,2504.9,3.2078]
[1730065016396,0.39965,2505.1,2504.9,3.60747]
[1730065016599,1.15120539,2505.1,2504.9,3.60747]
[1730065017006,1.55085539,2505.1,2504.9,3.60747]
[1730065017499,1.55085539,2505.1,2505.0,0.39966]
[1730065018298,1.55085539,2505.1,2505.0,0.84366]
[1730065018698,1.55085539,2505.1,2505.0,0.444]
[1730065022704,1.55085539,2505.1,2505.0,0.84366]
[1730065026805,1.15120539,2505.1,2505.0,0.84366]
[1730065027005,0.8513,2505.3,2505.0,0.84366]
[1730065027006,0.818,2505.2,2505.1,0.39964]
[1730065027311,1.15120539,2505.2,2505.1,0.85794]
[1730065028402,1.15120539,2505.2,2505.1,0.39964]
[1730065029008,1.55082539,2505.2,2505.1,0.39964]
[1730065032001,1.25092,2505.3,2505.2,0.39962]
[1730065032214,2.40212539,2505.3,2505.2,0.39962]
[1730065032513,3.60734,2505.8,2505.6,0.39956]
[1730065032700,4.35900539,2505.8,2505.6,0.39956]
[1730065032900,3.2078,2505.8,2505.7,0.39954]
[1730065033810,4.35900539,2505.8,2505.7,0.39954]
[1730065034803,1.15120539,2505.8,2505.7,3.60734]
[1730065036813,1.15120539,2505.9,2505.8,0.39951]
[1730065037016,1.15120539,2505.9,2505.8,1.27221]
[1730065037708,1.15120539,2505.9,2505.8,2.42341539]
[1730065039211,1.15120539,2505.9,2505.8,1.27221]
[1730065041711,1.15120539,2505.9,2505.8,2.42341539]
[1730065041913,0.39947,2506.2,2506.1,0.39948]
[1730065042113,1.15120539,2506.2,2506.1,0.39948]
[1730065043118,1.55066539,2506.2,2506.1,0.39948]
[1730065046820,1.05946539,2506.2,2506.1,0.39948]
[1730065047218,0.39946,2506.2,2506.1,0.39948]
[1730065047524,1.05066539,2506.2,2506.1,0.39948]
[1730065047916,0.39946,2506.2,2506.1,0.39948]
[1730065048116,0.39946,2506.2,2506.1,0.81668]
[1730065048517,1.15116539,2506.3,2506.1,0.81668]
[1730065048721,1.55061539,2506.3,2506.2,0.443]
[1730065049023,1.55061539,2506.3,2506.2,0.84246]
[1730065049424,1.55061539,2506.3,2506.2,1.27476]
[1730065050923,0.39945,2506.3,2506.2,1.27476]
[1730065051830,0.39945,2506.3,2506.2,1.27474]
[1730065062024,0.39945,2506.4,2506.3,0.39944]
[1730065062629,0.39945,2506.3,2506.2,1.27475]
[1730065072728,0.4202,2506.6,2506.2,0.8753]
[1730065072935,0.39942,2506.5,2506.4,0.39942]
[1730065074433,1.97081539,2506.6,2506.5,0.39942]
[1730065074733,0.81961,2506.6,2506.5,0.39942]
[1730065075241,0.39941,2506.6,2506.5,0.39942]
[1730065078037,1.55860539,2506.7,2506.4,1.59140539]
[1730065078247,1.95800539,2506.7,2506.6,0.3994]
[1730065081346,1.55860539,2506.7,2506.4,1.59140539]
[1730065081540,1.95800539,2506.7,2506.6,0.3994]
[1730065084637,1.55060539,2506.7,2506.6,0.3994]
[1730065084840,0.3994,2506.7,2506.6,0.3994]
[1730065092750,1.55058539,2506.8,2506.7,0.39938]
[1730065093144,1.55058539,2506.8,2506.7,0.84698]
[1730065093449,4.062,2506.9,2506.7,1.59880539]
[1730065093750,4.03577,2506.9,2506.8,0.39937]
[1730065096151,3.60717,2506.9,2506.8,0.39937]
[1730065098747,3.2078,2506.9,2506.8,1.55057539]
[1730065099063,0.39935,2507.0,2506.9,0.39935]
[1730065099268,0.39935,2507.0,2506.9,1.55055539]
[1730065101860,0.81443,2507.1,2507.0,0.39934]
[1730065102251,0.81443,2507.1,2507.0,0.83664]
[1730065102860,0.39933,2507.1,2507.0,0.83664]
[1730065103058,0.39933,2507.1,2507.0,1.69174]
[1730065103259,4.35900539,2507.2,2507.0,1.2924]
[1730065103462,4.75832539,2507.2,2507.1,0.39932]
[1730065103756,3.2078,2507.2,2507.1,0.39932]
[1730065103958,0.8533,2507.3,2507.2,0.3993]
[1730065103959,1.25259,2507.3,2507.2,0.3993]
[1730065104359,0.83559,2507.3,2507.2,0.3993]
[1730065105052,0.4363,2507.3,2507.2,0.3993]
[1730065105257,0.39928,2507.4,2507.3,0.39929]
[1730065105761,0.39928,2507.4,2507.3,0.84879]
[1730065106462,2.41017539,2507.5,2507.4,0.39927]
[1730065107062,1.96647539,2507.5,2507.4,0.39927]
[1730065112661,0.81527,2507.5,2507.4,0.39927]
[1730065112958,0.81527,2507.5,2507.4,1.55047539]
[1730065113159,1.99535539,2507.6,2507.5,0.39926]
[1730065115763,0.84415,2507.6,2507.5,0.39926]
[1730065115963,1.99535539,2507.6,2507.5,0.39926]
[1730065116371,1.55045539,2507.6,2507.5,0.39926]
[1730065116568,1.55045539,2507.6,2507.5,1.55046539]
[1730065116863,0.39925,2507.6,2507.5,1.55046539]
[1730065118861,0.4321,2507.7,2507.5,1.15120539]
[1730065119163,0.83134,2507.7,2507.6,1.55044539]
[1730065122575,0.39924,2507.7,2507.6,1.55044539]
[1730065125271,3.60702,2507.8,2507.7,0.39923]
[1730065125469,3.60702,2507.8,2507.7,1.55043539]
[1730065130571,0.39922,2507.8,2507.7,1.55043539]
[1730065135082,0.39919,2508.0,2507.9,0.39918]
[1730065135282,0.39919,2508.0,2507.9,1.55038539]
[1730065135668,0.39919,2508.0,2507.9,2.01228539]
[1730065139182,0.39917,2508.1,2508.0,0.39915]
[1730065139371,0.39917,2508.1,2508.0,1.55035539]
[1730065148794,1.2962,2508.4,2508.0,1.15120539]
[1730065149082,0.39913,2508.3,2508.2,1.55033539]
[1730065152591,0.9012,2508.7,2508.2,6.28961078]
[1730065152789,0.39911,2508.5,2508.4,0.39909]
[1730065154796,0.39911,2508.5,2508.4,1.55029539]
[1730065155696,0.39911,2508.5,2508.4,1.55031539]
[1730065168395,4.0248,2509.0,2508.4,1.55031539]
[1730065168396,4.20526,2509.3,2508.5,0.99775]
[1730065168596,3.60677,2509.3,2509.2,1.15120539]
[1730065168997,4.03737,2509.3,2509.2,1.15120539]
[1730065170098,4.03737,2509.3,2509.2,1.55019539]
[1730065170299,0.39895,2509.5,2509.4,0.39895]
[1730065170506,3.21268193,2509.6,2509.5,0.39894]
[1730065170697,3.21268193,2509.6,2509.5,1.55014539]
[1730065171597,0.00488193,2509.6,2509.5,1.55014539]
[1730065172305,0.40380193,2509.6,2509.5,1.55014539]
[1730065172496,0.00488193,2509.6,2509.5,1.55014539]
[1730065172697,0.00488193,2509.6,2509.5,6.68615078]
[1730065172901,0.00488193,2509.6,2509.5,5.53494539]
[1730065175605,0.00488193,2509.6,2509.5,6.68615078]
[1730065175804,0.40380193,2509.6,2509.5,5.53494539]
[1730065176002,0.00488193,2509.6,2509.5,5.53494539]
[1730065176402,0.00488193,2509.6,2509.5,6.68615078]
[1730065176603,0.00488193,2509.6,2509.5,9.89395078]
[1730065176906,0.39890193,2509.7,2509.6,0.39892]
[1730065177105,0.39890193,2509.7,2509.6,2.70133078]
[1730065177408,0.20250193,2509.7,2509.6,6.68613078]
[1730065177610,0.19670193,2509.7,2509.6,6.28721078]
[1730065177799,0.4605,2509.9,2509.6,6.28721078]
[1730065177998,0.4605,2509.9,2509.8,1.15120539]
[1730065178310,0.46158,2509.9,2509.8,1.15120539]
[1730065178609,0.06328,2509.9,2509.8,1.15120539]
[1730065178810,1.0611,2510.0,2509.8,1.15120539]
[1730065179111,0.39891,2509.7,2509.6,1.55011539]
[1730065179311,0.39891,2509.7,2509.6,1.15120539]
[1730065179502,0.3989,2509.8,2509.7,0.39891]
[1730065179703,1.0611,2510.0,2509.6,1.55011539]
[1730065179704,0.39891,2509.7,2509.6,1.55011539]
[1730065180105,0.39891,2509.7,2509.6,5.53491539]
[1730065180806,0.39891,2509.7,2509.6,6.68612078]
[1730065181411,1e-05,2509.7,2509.6,6.68612078]
[1730065181803,0.39891,2509.7,2509.6,2.70132078]
[1730065182001,0.39891,2509.7,2509.6,6.68612078]
[1730065182207,1e-05,2509.7,2509.6,6.68612078]
[1730065182506,0.26332,2510.0,2509.6,2.70132078]
[1730065182710,0.66218,2510.0,2509.9,1.15120539]
[1730065192410,0.39892,2509.6,2508.6,3.02894119]
[1730065192615,0.39897,2509.3,2509.2,0.82899]
[1730065192803,2.32978,2509.5,2509.2,0.82899]
[1730065193009,0.39897,2509.3,2509.2,0.82899]
[1730065193414,0.39897,2509.3,2509.2,1.98019539]
[1730065193610,0.39897,2509.3,2509.2,1.58120539]
[1730065193817,0.39897,2509.3,2509.2,1.15120539]
[1730065194311,0.39897,2509.3,2509.2,1.55019539]
[1730065199407,0.39897,2509.3,2509.2,1.15120539]
[1730065199616,0.39897,2509.3,2509.2,1.55019539]
[1730065200216,0.39897,2509.3,2509.0,1.57780539]
[1730065200217,0.863,2509.5,2509.0,0.4266]
[1730065200413,1.39637,2509.4,2509.1,0.399]
[1730065200713,3.2078,2509.7,2509.3,1.15120539]
[1730065200917,3.60671,2509.7,2509.6,1.15120539]
[1730065201222,3.2078,2509.7,2509.6,2.70133078]
[1730065201915,3.2078,2509.7,2509.6,6.68613078]
[1730065202123,3.2078,2509.7,2509.6,7.12483078]
[1730065203110,3.2078,2509.7,2509.6,3.14003078]
[1730065203309,3.2078,2509.7,2509.6,7.12483078]
[1730065204319,3.2078,2509.7,2509.3,0.4508]
[1730065204320,0.39895,2509.4,2509.3,0.4508]
[1730065204520,0.39895,2509.4,2509.3,1.60200539]
[1730065205322,0.39895,2509.4,2509.3,2.00097539]
[1730065205524,0.39895,2509.4,2509.3,1.60200539]
[1730065205716,0.39895,2509.4,2509.3,2.00097539]
[1730065205921,0.39895,2509.4,2509.3,1.60200539]
[1730065206912,0.39895,2509.4,2509.2,0.85328]
[1730065206913,0.39897,2509.3,2509.2,0.4543]
[1730065207118,0.39897,2509.3,2509.2,1.60550539]
[1730065208026,0.39897,2509.3,2509.2,2.00449539]
[1730065208421,1.43227,2509.5,2509.1,0.4642]
[1730065208621,0.83384,2509.5,2509.4,1.15120539]
[1730065211923,0.39897,2509.3,2509.2,0.39898]
[1730065212122,0.39897,2509.3,2509.2,1.55018539]
[1730065213620,0.39897,2509.3,2509.2,0.39898]
[1730065213824,0.39897,2509.3,2509.2,1.55018539]
[1730065218031,0.39897,2509.3,2509.2,0.39898]
[1730065218231,0.39897,2509.3,2509.2,1.55018539]
[1730065223034,0.39897,2509.3,2509.2,0.39898]
[1730065223228,0.39897,2509.3,2509.2,1.15120539]
[1730065223825,0.39899,2509.2,2509.1,0.4642]
[1730065224029,0.39899,2509.2,2509.1,1.61540539]
[1730065235456,0.39899,2509.2,2509.1,2.01440539]
[1730065236553,0.39899,2509.2,2509.1,1.61540539]
[1730065239256,0.39899,2509.2,2509.1,2.01440539]
[1730065240353,0.39899,2509.2,2509.1,1.61540539]
[1730065244754,0.39899,2509.2,2509.1,2.01440539]
[1730065247957,0.39899,2509.2,2509.1,1.61540539]
[1730065248155,0.39899,2509.2,2509.1,2.01440539]
[1730065252664,0.39899,2509.2,2509.1,1.61540539]
[1730065252860,0.39899,2509.2,2509.1,2.01440539]
[1730065261085,0.39899,2509.2,2509.1,1.61540539]
[1730065261371,0.39899,2509.2,2509.1,2.01440539]
[1730065265872,0.39899,2509.3,2509.2,0.39896]
[1730065266080,0.39899,2509.3,2509.2,1.55016539]
[1730065266269,0.39899,2509.3,2509.2,5.53576539]
[1730065266864,0.99732,2509.6,2509.3,0.39895]
[1730065266865,0.39897,2509.4,2509.3,0.39895]
[1730065267069,0.39897,2509.4,2509.3,2.42755539]
[1730065267270,0.39897,2509.4,2509.3,6.41235539]
[1730065267571,0.39895,2509.5,2509.4,0.39894]
[1730065267766,0.39895,2509.5,2509.4,1.55014539]
[1730065301197,0.39895,2509.5,2509.2,0.39897]
[1730065301198,0.39897,2509.3,2509.2,0.39897]
[1730065301395,0.39897,2509.3,2509.2,1.55017539]
[1730065301999,1.26747,2509.3,2509.2,1.55017539]
[1730065303501,1.26747,2509.3,2509.2,1.15120539]
[1730065304001,1.26747,2509.3,2509.2,1.55019539]
[1730065305000,0.39897,2509.3,2509.2,1.55019539]
[1730065313201,0.39897,2509.4,2509.3,0.39895]
[1730065313401,0.39897,2509.4,2509.3,2.42405539]
[1730065335137,3.2078,2509.7,2509.3,2.02510539]
[1730065335332,3.2078,2509.7,2509.6,1.55012539]
[1730065335333,3.60671,2509.7,2509.6,1.55012539]
[1730065335834,7.59151,2509.7,2509.6,1.55012539]
[1730065337132,0.39891,2509.7,2509.6,1.55012539]
[1730065338641,0.39891,2509.7,2509.6,1.15120539]
[1730065339137,0.39891,2509.7,2509.6,1.55012539]
[1730065342831,0.39891,2509.7,2509.6,1.15120539]
[1730065343438,0.39891,2509.7,2509.6,1.55012539]
[1730065343837,0.39891,2509.7,2509.6,1.15120539]
[1730065345044,0.39892,2509.6,2509.5,0.87733]
[1730065361844,0.39892,2509.7,2509.6,0.39889]
[1730065362041,0.39892,2509.7,2509.6,2.00269539]
[1730065363654,4.35900539,2509.9,2509.6,1.60380539]
[1730065363850,3.60668,2509.9,2509.8,1.55009539]
[1730065364053,17.5109367,2510.1,2510.0,0.39886]
[1730065364351,0.39885,2510.1,2510.0,1.55006539]
[1730065364550,0.39885,2510.1,2510.0,5.53406539]
[1730065365353,0.99704,2510.4,2510.0,5.13520539]
[1730065365553,0.39884,2510.3,2510.2,1.15120539]
[1730065365752,0.39884,2510.3,2510.2,1.55003539]
[1730065366154,0.39884,2510.3,2510.2,1.15120539]
[1730065366659,0.84664,2510.3,2510.2,1.15120539]
[1730065367360,0.84664,2510.3,2510.2,1.58570539]
[1730065367752,0.84664,2510.3,2510.2,1.98453539]
[1730065371960,0.84664,2510.3,2510.2,1.58570539]
[1730065373150,0.84664,2510.3,2510.2,1.98453539]
[1730065374765,0.39884,2510.3,2510.2,1.98453539]
[1730065381266,0.39881,2510.4,2510.3,0.3988]
[1730065381467,0.39881,2510.4,2510.3,0.858]
[1730065389677,0.39881,2510.4,2510.3,4.8412]
[1730065393483,0.39881,2510.4,2510.3,8.049]
[1730065393972,0.39881,2510.4,2510.3,4.8412]
[1730065394174,0.39881,2510.4,2510.3,8.049]
[1730065394978,5.13440539,2510.4,2509.3,2.35827766]
[1730065395183,0.39888,2510.0,2509.9,0.39887]
[1730065396776,0.39888,2510.0,2509.9,1.55007539]
[1730065397189,0.81988,2510.1,2509.9,1.55007539]
[1730065397479,0.72016,2510.1,2509.9,1.55007539]
[1730065397681,0.39888,2510.0,2509.9,1.55007539]
[1730065398175,0.72016,2510.1,2509.9,1.15120539]
[1730065398376,0.85736,2510.1,2510.0,0.39886]
[1730065398579,0.35736,2510.1,2510.0,1.28656]
[1730065398980,1.43674,2510.3,2510.0,1.28656]
[1730065399276,0.83851,2510.3,2510.2,1.15120539]
[1730065400773,1.30371,2510.3,2510.2,1.15120539]
[1730065404384,1.30371,2510.3,2510.2,1.55003539]
[1730065404584,5.28771,2510.3,2510.2,1.55003539]
[1730065407289,0.39881,2510.4,2510.3,0.3988]
[1730065407487,3.2078,2510.5,2510.4,0.3988]
[1730065407785,0.40905834,2510.8,2510.4,5.53320539]
[1730065407993,0.40905834,2510.8,2510.7,0.39875]
[1730065408691,0.40905834,2510.8,2510.7,0.84255]
[1730065411988,0.40905834,2510.8,2510.7,1.99375539]
[1730065416191,0.01031834,2510.8,2510.7,1.99375539]
[1730065416493,0.40904834,2510.8,2510.7,1.99375539]
[1730065417195,0.01031834,2510.8,2510.7,1.99375539]
[1730065417491,0.40904834,2510.8,2510.7,1.99375539]
[1730065418289,0.01031834,2510.8,2510.7,1.99375539]
[1730065418488,0.40904834,2510.8,2510.7,1.99375539]
[1730065419387,0.01031834,2510.8,2510.7,5.20155539]
[1730065424101,0.01031834,2510.8,2510.7,1.99375539]
[1730065424499,0.01031834,2510.8,2510.7,5.20155539]
[1730065424899,0.01031834,2510.8,2510.7,1.99375539]
[1730065425099,0.01031834,2510.8,2510.7,5.20155539]
[1730065426001,0.39873,2510.9,2510.8,1.54993539]
[1730065426794,0.39873,2510.9,2510.8,0.39873]
[1730065426994,0.39873,2510.9,2510.8,1.54993539]
[1730065427704,0.39873,2510.9,2510.8,0.39873]
[1730065428005,0.39873,2510.9,2510.8,1.54993539]
[1730065430404,3e-05,2510.9,2510.8,1.54993539]
[1730065431102,0.39875,2510.9,2510.8,1.54993539]
[1730065431507,0.99669,2511.1,2510.8,1.54993539]
[1730065431699,3.40108539,2511.2,2511.0,1.15120539]
[1730065432103,0.39868,2511.1,2511.0,1.15120539]
[1730065433504,0.39868,2511.1,2511.0,1.58040539]
[1730065434207,0.39868,2511.1,2511.0,1.97910539]
[1730065434901,0.39868,2511.1,2511.0,0.3987]
[1730065435099,0.39868,2511.1,2511.0,1.15120539]
[1730065436810,0.39868,2511.1,2511.0,1.54990539]
[1730065438602,2.8278,2511.4,2511.1,3.9824]
[1730065438803,0.8368,2515.8,2512.7,3.994]
[1730065439000,0.4156568,2517.6,2515.7,2.30241078]
[1730065439207,0.39761,2518.0,2517.0,0.39774]
[1730065439408,5.64077326,2517.1,2516.6,3.3495945]
[1730065439606,0.93790865,2518.1,2517.0,3.2078]
[1730065439607,4.38750215,2517.9,2517.0,3.2078]
[1730065439909,4.38750215,2517.9,2516.4,3.2078]
[1730065439910,1.15120539,2517.1,2516.4,3.2078]
[1730065440100,1.15120539,2516.7,2516.5,3.2078]
[1730065440302,3.2078,2517.1,2516.5,3.2078]
[1730065440504,3.2078,2517.1,2516.6,0.32346661]
[1730065440816,3.9736,2517.0,2516.7,0.12441382]
[1730065441002,3.9736,2517.0,2516.5,3.2078]
[1730065441204,3.9736,2516.9,2516.5,3.2078]
[1730065441507,3.9736,2516.9,2515.4,2.21301]
[1730065441508,1.218,2516.8,2516.1,3.2078]
[1730065441711,1.218,2516.8,2516.2,0.12443219]
[1730065441915,3.9736,2516.7,2516.0,3.2078]
[1730065442103,1.218,2516.8,2516.0,3.2078]
[1730065442104,4.4258,2516.8,2516.0,3.2078]
[1730065442305,1.218,2516.8,2516.1,0.12443921]
[1730065442504,1.218,2516.8,2516.0,3.2078]
[1730065442700,3.2078,2516.6,2516.0,3.2078]
[1730065443212,3.9744,2516.5,2516.0,3.2078]
[1730065443410,3.9744,2516.5,2515.5,5.69234419]
[1730065443612,3.2078,2516.6,2515.5,5.69234419]
[1730065443917,3.2078,2516.6,2515.5,3.2078]
[1730065444107,3.2078,2516.3,2515.5,3.2078]
[1730065444307,0.39788,2516.2,2515.5,3.2078]
[1730065444607,1.284,2516.1,2515.5,3.2078]
[1730065444904,0.39793,2515.9,2515.5,3.2078]
[1730065445105,7.58092,2516.0,2515.5,3.2078]
[1730065445308,3.2078,2516.0,2515.5,3.2078]
[1730065445708,3.60572,2516.0,2515.0,3.2078]
[1730065445909,3.2078,2516.0,2515.0,3.2078]
[1730065446103,0.39795,2515.8,2514.9,5.69234419]
[1730065446505,0.39795,2515.8,2514.9,3.2078]
[1730065447218,3.2078,2516.0,2514.9,3.2078]
[1730065447713,0.39796,2515.7,2514.9,3.2078]
[1730065449216,0.39796,2515.7,2515.0,2.48454419]
[1730065449919,0.39796,2515.7,2514.9,3.2078]
[1730065450116,3.2078,2515.9,2514.9,3.2078]
[1730065450317,0.39798,2515.6,2514.9,3.2078]
[1730065451708,3.2078,2515.9,2514.9,3.2078]
[1730065451914,0.39799,2515.5,2514.9,3.2078]
[1730065452413,1.431,2515.4,2514.9,5.69234419]
[1730065453513,0.39802,2515.3,2514.9,5.69234419]
[1730065453918,1.431,2515.4,2514.9,3.2078]
[1730065454618,0.39804,2515.2,2514.9,3.2078]
[1730065455824,0.39803,2515.3,2514.9,5.69234419]
[1730065456014,1.82902,2515.4,2514.9,5.69234419]
[1730065456610,1.431,2515.4,2514.9,5.69234419]
[1730065456916,0.39804,2515.2,2514.9,5.69234419]
[1730065457616,0.39803,2515.3,2514.9,5.69234419]
[1730065458410,0.39803,2515.3,2514.9,3.2078]
[1730065459615,1.431,2515.4,2514.9,3.2078]
[1730065460118,0.39805,2515.1,2514.9,3.2078]
[1730065461719,1.431,2515.4,2514.9,3.2078]
[1730065461720,0.39807,2515.0,2514.9,3.2078]
[1730065464823,0.39812,2514.7,2514.5,3.2078]
[1730065465117,0.39812,2514.7,2514.6,2.48454419]